bitfinex/quotes_ETHUSD_20220123
["timestamp","ask_amount","ask_price","bid_price","bid_amount"]
[1642953893844,0.04,2439.3,2438.4,0.03828744]
[1642953894044,0.99666701,2440.0,2438.5,7.85]
[1642953894045,0.48366701,2440.0,2438.5,7.85]
[1642953894245,0.48366701,2440.0,2439.1,0.04438695]
[1642953894447,0.481,2440.0,2439.2,0.07525583]
[1642953894643,0.481,2440.0,2439.2,1.07525583]
[1642953894854,0.481,2440.0,2439.4,0.01214666]
[1642953895046,0.481,2440.0,2439.2,1.3]
[1642953895047,0.481,2440.0,2439.5,0.03388153]
[1642953895243,0.481,2440.0,2439.5,1.41266094]
[1642953895443,0.481,2440.0,2438.9,1.0]
[1642953895444,0.481,2440.0,2439.0,0.3]
[1642953895701,0.481,2440.0,2438.2,1.17127337]
[1642953895702,0.0121086,2439.8,2438.4,0.1638]
[1642953895901,0.0121086,2439.8,2438.4,3.0341609]
[1642953896298,1.28316914,2439.7,2438.4,3.0341609]
[1642953896501,0.481,2440.0,2439.3,1.19952056]
[1642953896901,0.481,2440.0,2439.3,1.49952056]
[1642953897100,0.481,2440.0,2439.3,5.89952056]
[1642953897506,0.481,2440.0,2439.4,4.63923702]
[1642953897702,0.05202129,2440.6,2439.6,7.85]
[1642953897703,0.04,2440.6,2439.6,7.85]
[1642953897905,0.04,2440.6,2439.7,0.04178133]
[1642953898201,0.04,2440.6,2439.7,1.1638]
[1642953898402,1.31101711,2440.6,2439.7,1.0]
[1642953898601,0.01052511,2440.8,2440.0,1.52572306]
[1642953898805,0.55252511,2441.1,2440.0,1.52572306]
[1642953899003,1.24693654,2440.8,2439.4,7.9124]
[1642953899207,0.79732,2440.7,2439.4,7.9124]
[1642953899464,0.79732,2440.7,2439.4,3.9341]
[1642953899659,1.3006958,2440.2,2439.4,3.9341]
[1642953899859,0.592,2440.5,2439.0,4.91587318]
[1642953900066,0.592,2440.5,2439.1,0.1638]
[1642953900262,0.592,2440.8,2439.1,0.1638]
[1642953900866,0.592,2440.8,2440.2,1.24604602]
[1642953901066,0.542,2440.8,2440.2,1.24604602]
[1642953901269,0.542,2440.8,2439.3,0.01253952]
[1642953901467,0.542,2440.8,2439.3,1.01253952]
[1642953901866,0.292,2440.8,2439.3,1.01253952]
[1642953902469,0.292,2440.8,2439.3,0.01253952]
[1642953902675,0.20532,2440.7,2439.2,1.7488]
[1642953902968,0.592,2440.6,2439.2,1.1488]
[1642953903181,1.22396701,2441.1,2439.3,3.0112284]
[1642953903381,8.19,2440.8,2439.3,3.0112284]
[1642953903581,8.19,2440.8,2439.3,27.6532284]
[1642953903978,8.19,2440.8,2439.3,28.2532284]
[1642953904280,1.17030082,2441.1,2440.5,1.37980631]
[1642953905080,0.01278056,2441.2,2440.5,1.37980631]
[1642953905886,0.592,2441.4,2441.0,1.52554446]
[1642953906095,0.07880701,2441.3,2441.0,2.54404446]
[1642953906288,0.28412701,2441.3,2440.9,0.4736]
[1642953906487,0.592,2441.2,2440.0,0.1638]
[1642953906837,0.20532,2441.1,2440.0,0.1638]
[1642953907033,0.592,2441.0,2440.0,0.1638]
[1642953907235,0.592,2441.0,2440.2,1.31334662]
[1642953907434,0.892,2441.0,2440.2,1.31334662]
[1642953907634,1.3006958,2440.9,2440.2,1.31334662]
[1642953907843,1.3006958,2440.9,2440.0,4.1]
[1642953907844,1.8060158,2440.9,2440.0,4.1]
[1642953908042,0.012967,2440.7,2440.0,4.1]
[1642953908239,0.592,2440.6,2440.0,4.1]
[1642953908839,1.48925917,2440.4,2440.0,4.1]
[1642953909043,0.592,2440.3,2440.0,4.1]
[1642953909644,8.05532,2440.1,2438.7,3.0112284]
[1642953909842,8.05532,2440.1,2438.5,3.7962]
[1642953909843,6.75,2440.0,2438.5,3.7962]
[1642953910144,0.492,2439.9,2438.5,3.7962]
[1642953910588,1.11323378,2439.5,2438.6,1.29210254]
[1642953911196,0.492,2439.6,2438.6,1.29210254]
[1642953911794,0.00267287,2440.4,2438.6,1.29210254]
[1642953912096,0.492,2440.3,2438.7,0.1638]
[1642953912294,0.492,2440.3,2440.1,1.22101395]
[1642953912494,0.00267287,2440.7,2440.1,1.22101395]
[1642953912898,0.00267287,2440.7,2439.8,0.275]
[1642953913093,0.492,2440.8,2439.8,0.275]
[1642953913493,3.48504146,2440.7,2439.8,0.275]
[1642953913693,3.48504146,2440.7,2439.0,5.2423]
[1642953913694,0.492,2440.6,2439.0,5.2423]
[1642953913992,4.22243702,2440.5,2439.4,1.1049387]
[1642953914193,0.69732,2440.4,2439.4,1.1049387]
[1642953914461,0.99732,2440.4,2439.4,1.1049387]
[1642953914853,1.29732,2440.4,2439.4,1.1049387]
[1642953915148,0.492,2440.4,2439.8,1.35221085]
[1642953915349,0.492,2440.4,2439.2,1.6]
[1642953915948,0.492,2440.4,2439.2,1.3]
[1642953916150,0.492,2440.4,2439.2,1.6]
[1642953916550,0.492,2440.4,2439.7,1.36006553]
[1642953916952,0.492,2440.4,2439.2,1.6]
[1642953917154,0.492,2440.4,2439.2,1.0]
[1642953917155,0.242,2440.4,2439.2,1.0]
[1642953917354,0.242,2440.4,2439.1,3.7256]
[1642953917556,0.242,2440.4,2438.9,4.9252]
[1642953917557,0.20532,2440.3,2438.9,4.9252]
[1642953917759,0.492,2440.2,2438.9,4.9252]
[1642953917958,1.23142538,2439.7,2438.8,1.2986]
[1642953918219,0.492,2439.8,2438.8,0.1638]
[1642953918613,0.492,2439.8,2439.0,4.1]
[1642953919013,0.492,2439.8,2439.0,4.4]
[1642953919215,0.492,2439.8,2439.1,2.39722776]
[1642953919416,0.00267287,2440.5,2439.1,2.39722776]
[1642953919614,1.2386,2440.7,2439.1,2.39722776]
[1642953920014,0.49467287,2440.8,2439.1,2.39722776]
[1642953920216,0.20532,2440.7,2439.1,2.39722776]
[1642953920418,0.492,2440.6,2439.8,1.09209724]
[1642953920617,1.7926958,2440.6,2439.8,1.09209724]
[1642953920822,0.492,2440.6,2439.8,1.09209724]
[1642953921618,0.01291208,2441.0,2440.4,1.51337768]
[1642953921838,1.20643003,2441.0,2439.8,0.3]
[1642953922042,1.20643003,2441.0,2439.4,0.1638]
[1642953922443,0.10717785,2440.6,2439.4,0.1638]
[1642953922643,3.0373657,2441.0,2439.4,0.1638]
[1642953923045,3.0373657,2441.0,2440.2,1.14149783]
[1642953923244,0.01291208,2441.0,2439.5,8.6108]
[1642953923448,3.0373657,2441.0,2439.5,8.9108]
[1642953923645,1.76223752,2440.9,2439.6,1.0]
[1642953923847,1.76223752,2440.9,2439.6,1.3]
[1642953924249,1.76223752,2440.9,2440.2,1.34477099]
[1642953924444,0.492,2440.9,2440.2,1.34477099]
[1642953925699,1.60090535,2440.9,2439.6,1.3]
[1642953925888,0.14353004,2440.5,2439.6,1.3]
[1642953926093,0.492,2440.9,2439.6,1.3]
[1642953926489,0.492,2440.9,2439.6,4.98884564]
[1642953926791,0.492,2440.9,2439.6,1.3]
[1642953927395,0.492,2440.9,2440.4,1.5042367]
[1642953927595,0.492,2440.9,2439.6,1.3]
[1642953928395,0.492,2440.9,2439.6,5.4]
[1642953928999,1.1778,2441.3,2439.6,5.4]
[1642953929199,1.1778,2441.3,2439.7,0.04310882]
[1642953929434,0.492,2441.2,2440.4,1.47378548]
[1642953929638,1.3006958,2440.9,2440.4,1.47378548]
[1642953929837,0.492,2441.2,2440.4,1.47378548]
[1642953930038,0.442,2441.2,2440.4,1.47378548]
[1642953930839,1.3006958,2440.9,2440.4,1.47378548]
[1642953931041,1.3006958,2440.9,2439.8,2.5307]
[1642953931247,3.56692412,2440.8,2439.8,1.6]
[1642953931440,1.3006958,2440.9,2439.8,0.3]
[1642953931642,1.3006958,2440.9,2439.6,1.8482]
[1642953932043,1.21579,2440.8,2440.0,1.27224691]
[1642953932442,1.3006958,2440.9,2440.0,1.57224691]
[1642953933382,2.82974586,2440.9,2440.0,1.27224691]
[1642953933580,3.12974586,2440.9,2440.0,1.27224691]
[1642953933787,1.6006958,2440.9,2440.0,1.27224691]
[1642953934379,0.492,2440.8,2440.0,1.27224691]
[1642953934986,0.69732,2440.8,2439.6,0.2482]
[1642953935183,0.01283685,2440.5,2439.6,0.2482]
[1642953935381,0.20532,2440.4,2439.6,0.2482]
[1642953936384,0.01283685,2440.5,2440.0,1.21733268]
[1642953937041,0.01283685,2440.5,2439.6,0.2482]
[1642953937838,1.5060158,2440.9,2439.6,0.2482]
[1642953938042,13.05398,2441.2,2439.6,0.2482]
[1642953938240,5.5404,2441.2,2439.7,3.48815719]
[1642953938441,5.5404,2441.2,2439.8,4.03451627]
[1642953938639,5.5404,2441.2,2439.9,1.0]
[1642953938839,1.6984,2441.2,2439.9,0.996882]
[1642953939042,1.6984,2441.2,2439.8,0.3]
[1642953939241,1.48423908,2441.1,2439.7,3.8273]
[1642953939442,0.01291078,2440.7,2439.6,4.3482]
[1642953939647,0.01291078,2440.7,2439.6,4.1]
[1642953939648,0.01261651,2440.1,2439.6,4.1]
[1642953939841,0.492,2440.0,2439.6,4.1]
[1642953941697,0.76743847,2439.9,2439.6,4.1]
[1642953941894,0.71743847,2439.5,2438.7,7.43]
[1642953942095,0.71743847,2439.3,2438.2,7.5962]
[1642953942292,0.71743847,2439.1,2438.2,3.8885]
[1642953942490,0.71743847,2439.1,2438.1,0.06230804]
[1642953942692,0.71743847,2439.1,2438.4,3.48944137]
[1642953942893,0.71743847,2439.1,2438.1,0.06230804]
[1642953943105,0.492,2439.2,2438.1,0.06230804]
[1642953943106,0.71743847,2438.9,2438.1,0.06230804]
[1642953943297,3.29922445,2439.0,2438.1,0.04999999]
[1642953943298,0.71743847,2438.7,2438.1,0.04999999]
[1642953943796,0.71743847,2438.7,2437.9,0.164]
[1642953943797,3.99647523,2438.7,2437.9,0.164]
[1642953943993,3.99647523,2438.7,2438.2,1.53406588]
[1642953943994,0.71743847,2438.7,2438.2,1.53406588]
[1642953944846,0.71743847,2438.7,2437.9,0.164]
[1642953945046,0.71743847,2438.7,2437.8,1.0]
[1642953945448,0.71743847,2438.5,2437.8,0.3]
[1642953945651,1.20943847,2438.5,2437.8,1.3]
[1642953945847,1.20943847,2438.5,2437.8,1.0]
[1642953947154,1.20943847,2438.5,2438.4,4.26671675]
[1642953947454,1.20943847,2438.5,2437.8,1.0]
[1642953948695,1.20943847,2438.5,2438.2,1.53487171]
[1642953948895,1.20943847,2438.5,2437.8,4.1]
[1642953949995,1.20943847,2438.5,2437.8,5.50666138]
[1642953951001,1.20943847,2438.5,2437.8,4.1]
[1642953951002,0.71743847,2438.4,2437.8,4.1]
[1642953951197,0.792,2438.5,2437.8,4.1]
[1642953951198,0.71743847,2438.2,2437.8,4.1]
[1642953951401,0.71743847,2438.1,2437.8,4.1]
[1642953951596,1.20943847,2438.1,2437.8,4.1]
[1642953952242,1.20943847,2438.1,2438.0,1.38471789]
[1642953954047,0.71743847,2438.1,2438.0,6.48471789]
[1642953954247,0.71743847,2438.1,2438.0,7.78471789]
[1642953954447,4.20779999,2439.3,2438.1,7.85]
[1642953954650,0.54199999,2439.3,2438.9,1.40675289]
[1642953954947,0.04999999,2439.3,2438.9,1.40675289]
[1642953955787,0.04999999,2439.3,2438.3,3.9434]
[1642953955788,0.54199999,2439.3,2438.3,3.9434]
[1642953955987,0.54199999,2439.3,2438.2,1.1551]
[1642953956193,3.73806383,2439.2,2437.7,2.1271]
[1642953956392,0.492,2439.1,2437.7,2.4271]
[1642953956591,0.492,2439.1,2437.7,1.1271]
[1642953956592,3.98926299,2439.0,2437.7,1.1271]
[1642953956793,3.98926299,2439.0,2437.9,1.47538212]
[1642953956794,1.25251949,2438.8,2437.9,1.47538212]
[1642953956991,0.492,2438.7,2437.9,1.47538212]
[1642953957198,3.37508947,2438.6,2437.9,1.47538212]
[1642953957392,0.492,2438.5,2437.9,1.47538212]
[1642953957694,0.20532,2438.7,2437.9,1.47538212]
[1642953957695,0.492,2438.4,2437.9,1.47538212]
[1642953958695,0.492,2438.8,2437.9,1.47538212]
[1642953958897,0.492,2438.8,2437.9,1.77538212]
[1642953959096,0.492,2438.8,2437.9,2.07538212]
[1642953959344,0.08819997,2439.1,2437.9,2.07538212]
[1642953959646,0.08819997,2439.1,2438.8,1.50160469]
[1642953959849,0.08819997,2439.1,2437.9,0.61278494]
[1642953960045,0.08819997,2439.1,2437.9,0.31278494]
[1642953960247,0.08819997,2439.1,2437.9,0.3]
[1642953960449,0.08819997,2439.1,2438.0,0.164]
[1642953960847,0.08819997,2439.1,2438.7,1.49591615]
[1642953962758,5.36457287,2440.0,2438.7,2.09591615]
[1642953962956,3.00987287,2440.2,2438.7,2.09591615]
[1642953963187,3.00987287,2440.2,2438.8,0.05621267]
[1642953963584,3.0072,2440.2,2438.8,0.05621267]
[1642953963783,3.0072,2440.2,2439.5,1.09677889]
[1642953963986,2.81076973,2440.3,2439.5,1.09677889]
[1642953963987,1.6947,2440.3,2439.5,1.09677889]
[1642953964184,0.05259455,2440.6,2439.5,1.09677889]
[1642953964387,0.55791455,2440.6,2439.5,1.09677889]
[1642953964582,1.55791455,2440.6,2439.5,1.09677889]
[1642953964787,1.31706283,2440.5,2439.5,1.09677889]
[1642953964996,1.31706283,2440.5,2440.1,1.48785892]
[1642953967345,0.04,2440.6,2440.1,1.48785892]
[1642953967753,0.04,2440.6,2440.5,1.17136629]
[1642953968153,0.04,2440.6,2440.5,1.77136629]
[1642953968553,0.04,2440.6,2440.5,1.17136629]
[1642953968851,0.04,2440.6,2440.5,4.52136629]
[1642953969250,0.04,2440.6,2440.5,2.47136629]
[1642953969453,0.04,2440.6,2439.7,1.196]
[1642953969653,0.04,2440.6,2439.5,3.8842]
[1642953970251,0.04,2440.6,2439.4,4.7341]
[1642953970252,0.492,2440.5,2439.4,5.0341]
[1642953970453,0.792,2440.5,2440.0,1.09636215]
[1642953971494,0.492,2440.5,2440.0,1.09636215]
[1642953972098,0.492,2440.5,2439.4,1.3]
[1642953972301,3.86193962,2440.5,2439.4,0.6]
[1642953972501,3.86193962,2440.5,2440.0,4.1]
[1642953972707,0.492,2440.5,2440.0,4.1]
[1642953973700,1.3006958,2440.4,2440.0,4.1]
[1642953973903,4.73557009,2440.4,2440.0,4.1]
[1642953974107,0.69732,2440.3,2440.0,4.1]
[1642953974337,6.1,2440.0,2439.0,0.1638]
[1642953974543,0.492,2439.9,2439.0,0.1638]
[1642953974742,0.492,2439.9,2438.9,1.0]
[1642953975141,0.492,2439.9,2439.6,1.39688142]
[1642953975358,3.56228254,2440.3,2439.6,1.39688142]
[1642953975359,0.492,2440.3,2439.6,1.39688142]
[1642953975739,0.492,2440.3,2439.6,1.34688142]
[1642953976340,0.492,2440.3,2440.2,1.29703524]
[1642953976541,0.04,2440.6,2440.2,1.29703524]
[1642953978693,0.03,2441.0,2440.2,1.29703524]
[1642953978889,0.03,2441.0,2440.2,1.59703524]
[1642953979089,0.03,2441.0,2440.8,1.33301621]
[1642953979488,0.03,2441.0,2439.8,0.01214223]
[1642953980693,0.03,2441.0,2439.6,0.3]
[1642953980892,0.03,2441.0,2439.5,6.368]
[1642953981291,0.03,2441.0,2439.5,6.5318]
[1642953981691,0.10819996,2441.2,2440.6,1.10545289]
[1642953982442,0.10819996,2441.2,2440.6,5.20545289]
[1642953982643,1.31443173,2441.1,2440.6,5.20545289]
[1642953983841,0.10819996,2441.2,2440.6,5.20545289]
[1642953984441,0.10819996,2441.2,2440.6,4.1]
[1642953985450,1.48545393,2440.8,2440.6,4.1]
[1642953985707,5.042,2440.7,2440.6,4.1]
[1642953986298,0.492,2440.7,2440.6,4.1]
[1642953986499,0.99732,2440.7,2440.6,4.1]
[1642953987501,0.492,2440.7,2440.6,4.1]
[1642953989449,1.28700734,2440.8,2440.6,4.1]
[1642953990050,0.79632,2440.9,2440.6,4.1]
[1642953991452,0.591,2440.9,2440.6,4.1]
[1642953994089,0.10819996,2441.2,2440.6,4.1]
[1642953994286,0.10819996,2441.2,2440.9,1.24848581]
[1642953994887,0.10819996,2441.2,2440.6,4.1]
[1642953996092,0.10819996,2441.2,2440.8,1.49695842]
[1642953997938,0.10819996,2441.2,2440.6,4.1]
[1642953998341,24.05,2441.1,2440.6,4.1]
[1642953998543,5.19869364,2441.0,2440.6,4.1]
[1642953998746,29.83969364,2441.0,2440.6,4.1]
[1642953999042,30.13969364,2441.0,2440.6,4.1]
[1642953999440,30.34501364,2441.0,2440.6,4.1]
[1642953999644,4.69501364,2441.0,2440.6,4.1]
[1642953999843,0.591,2441.0,2440.6,4.1]
[1642954000045,0.891,2441.0,2440.6,4.1]
[1642954000443,0.591,2441.0,2440.6,4.1]
[1642954000691,0.10819996,2441.2,2440.6,4.1]
[1642954000889,0.10819996,2441.2,2440.7,1.26950251]
[1642954001400,0.591,2441.6,2440.7,1.56950251]
[1642954001597,3.324,2441.7,2440.7,2.56950251]
[1642954001795,1.06541,2441.8,2440.7,1.26950251]
[1642954001993,1.06541,2441.8,2441.1,1.53542006]
[1642954002393,1.3006958,2441.7,2441.1,1.53542006]
[1642954003294,1.3006958,2441.7,2440.6,4.1]
[1642954004097,1.3006958,2441.7,2440.5,0.16819997]
[1642954004343,1.3006958,2441.7,2440.7,1.12680841]
[1642954004344,1.22411469,2441.5,2440.7,1.12680841]
[1642954004648,25.27411469,2441.5,2440.7,1.12680841]
[1642954007254,25.27411469,2441.5,2440.2,1.0]
[1642954007255,0.01251739,2441.3,2440.2,1.0]
[1642954007455,0.01251739,2441.3,2440.1,1.2288]
[1642954007456,0.591,2441.2,2440.1,1.2288]
[1642954007751,5.08318384,2441.1,2440.1,1.2288]
[1642954007950,0.591,2441.0,2440.1,1.2288]
[1642954008191,3.67995619,2440.9,2439.5,3.9308]
[1642954008392,1.38600994,2440.8,2440.0,1.21760328]
[1642954008594,2.27700994,2440.8,2440.0,1.21760328]
[1642954008790,26.02700994,2440.8,2440.0,1.21760328]
[1642954008995,24.641,2440.8,2440.0,1.21760328]
[1642954009195,0.591,2440.8,2440.0,1.21760328]
[1642954009789,1.09632,2440.8,2440.0,1.21760328]
[1642954009991,3.21098912,2440.8,2440.0,1.21760328]
[1642954010192,2.21098912,2440.8,2440.0,1.21760328]
[1642954010892,1.70566912,2440.8,2440.0,1.21760328]
[1642954012945,1.70566912,2440.8,2440.0,5.31760328]
[1642954013145,0.591,2440.8,2440.0,5.31760328]
[1642954014850,0.591,2440.8,2440.1,1.0]
[1642954015452,0.591,2441.1,2440.1,1.3]
[1642954016514,0.591,2441.1,2440.4,1.09114015]
[1642954017096,0.591,2441.1,2440.0,4.1]
[1642954017697,3.29853567,2441.0,2440.0,4.1]
[1642954017902,1.1439924,2440.4,2440.0,4.1]
[1642954019104,0.591,2440.7,2440.0,4.1]
[1642954020343,1.10465937,2440.6,2440.0,4.1]
[1642954024093,1.79632,2441.0,2440.0,4.1]
[1642954024499,1.39632,2441.0,2440.0,4.1]
[1642954025095,2.39632,2441.0,2440.0,4.1]
[1642954025299,3.28572003,2440.9,2440.0,4.1]
[1642954025597,1.36780654,2440.6,2440.0,4.1]
[1642954025803,3.27325456,2440.5,2440.0,4.1]
[1642954025997,0.79632,2440.5,2440.0,4.1]
[1642954026198,25.05,2440.4,2440.0,4.1]
[1642954026398,0.591,2440.3,2440.0,4.1]
[1642954026596,1.45568883,2440.1,2440.0,3.7664]
[1642954026843,2.04668883,2440.1,2440.0,3.7664]
[1642954027250,2.25200883,2440.1,2440.0,3.7664]
[1642954027648,2.04668883,2440.1,2440.0,3.7664]
[1642954028648,7.68839274,2440.1,2440.0,3.7664]
[1642954030895,11.21349731,2440.1,2440.0,3.7664]
[1642954031097,7.85,2440.0,2439.0,0.3]
[1642954031304,7.85,2440.0,2438.8,15.5451]
[1642954031305,33.72824462,2439.9,2438.8,15.5451]
[1642954031500,34.02824462,2439.9,2438.8,12.4322]
[1642954031700,1.53049038,2439.7,2438.8,12.4322]
[1642954031901,3.40167916,2439.6,2438.8,7.5365]
[1642954032098,8.76777552,2439.6,2438.7,1.42366418]
[1642954033003,8.76777552,2439.6,2438.7,5.52366418]
[1642954033204,8.76777552,2439.6,2438.7,4.1]
[1642954033800,5.36609636,2439.6,2438.7,4.1]
[1642954034443,5.36609636,2439.6,2438.7,5.44683622]
[1642954034640,5.36609636,2439.6,2438.7,4.1]
[1642954035042,8.61528267,2439.6,2438.7,4.1]
[1642954035847,5.36609636,2439.6,2438.7,4.1]
[1642954037651,3.49715091,2439.5,2438.7,4.1]
[1642954037856,3.49715091,2439.5,2438.7,4.08164]
[1642954037857,0.591,2439.4,2438.7,4.08164]
[1642954038112,3.98433794,2439.3,2438.7,4.08164]
[1642954038303,0.591,2439.2,2438.7,4.08164]
[1642954038500,4.48169257,2439.2,2438.7,4.08164]
[1642954038899,4.47978257,2439.2,2438.7,4.08164]
[1642954039900,4.77978257,2439.2,2438.7,4.08164]
[1642954040407,4.87978257,2439.2,2438.7,4.08164]
[1642954040601,1.46228616,2439.1,2438.7,4.08164]
[1642954040804,0.591,2439.0,2438.7,4.08164]
[1642954041003,4.8932585,2439.0,2438.7,4.08164]
[1642954041404,4.0022585,2438.9,2438.7,4.0791]
[1642954041603,4.5932585,2438.9,2438.7,4.0791]
[1642954041836,4.0022585,2438.8,2438.7,4.0791]
[1642954045048,3.6856483,2438.8,2438.7,4.0791]
[1642954045694,3.6856483,2438.8,2438.7,5.6131643]
[1642954046091,0.1000483,2438.8,2438.7,14.67384615]
[1642954046396,0.05819997,2439.9,2438.8,7.85]
[1642954046590,0.05819997,2439.9,2438.9,1.0]
[1642954046795,0.05819997,2439.9,2438.8,11.51917214]
[1642954046997,2.1715126,2439.9,2439.4,1.4608569]
[1642954047696,2.11331263,2439.9,2439.4,1.4608569]
[1642954047896,0.20532,2440.4,2439.4,1.4608569]
[1642954047897,2.11331263,2440.3,2439.4,1.4608569]
[1642954048401,1.20532,2440.4,2439.3,0.9794]
[1642954048402,1.20532,2440.4,2439.8,1.35497522]
[1642954048598,0.20532,2440.4,2439.8,1.35497522]
[1642954048799,0.591,2440.8,2439.8,1.35497522]
[1642954049442,0.591,2440.8,2439.8,1.65497522]
[1642954049640,0.591,2440.8,2440.4,1.43556797]
[1642954049842,3.9171,2441.0,2440.4,1.43556797]
[1642954050041,24.05,2441.1,2440.4,1.43556797]
[1642954050540,0.20532,2441.0,2439.9,5.1103]
[1642954051642,1.20532,2441.0,2439.9,5.1103]
[1642954052048,1.50532,2441.0,2440.1,1.36347128]
[1642954052348,2.80722677,2441.0,2439.9,5.1103]
[1642954052549,0.591,2440.9,2439.9,5.1103]
[1642954052948,0.591,2440.9,2439.8,4.08749997]
[1642954053793,0.591,2440.9,2439.9,4.1]
[1642954053991,0.591,2440.9,2440.4,1.52578851]
[1642954054590,0.591,2440.9,2439.9,4.1]
[1642954054791,0.79632,2440.9,2439.9,4.1]
[1642954054992,24.84632,2440.9,2439.9,4.1]
[1642954055393,24.05,2440.7,2439.9,4.1]
[1642954055593,0.591,2440.6,2439.9,4.1]
[1642954055892,0.891,2440.6,2440.0,1.102913]
[1642954056697,0.591,2440.6,2440.0,1.102913]
[1642954056955,27.12733,2441.1,2440.0,1.1039127]
[1642954056956,0.591,2440.9,2440.0,1.1039127]
[1642954057158,24.05,2441.1,2440.0,1.1039127]
[1642954057355,0.591,2440.9,2440.0,0.0009997]
[1642954057559,0.79632,2440.9,2440.0,0.0009997]
[1642954057760,1.02601,2440.4,2440.0,0.0009997]
[1642954057960,0.591,2440.3,2440.0,0.0009997]
[1642954058359,0.891,2440.3,2440.0,0.0009997]
[1642954058559,2.191,2440.3,2440.0,0.0009997]
[1642954058958,0.591,2440.3,2440.0,0.0009997]
[1642954060693,0.591,2440.3,2440.1,1.14055524]
[1642954061699,0.50532,2440.4,2440.1,1.14055524]
[1642954061898,0.20532,2440.4,2440.0,0.0009997]
[1642954062698,0.591,2440.3,2440.0,0.0009997]
[1642954064009,4.00812,2440.9,2440.0,0.0009997]
[1642954064202,0.591,2440.8,2440.0,0.0009997]
[1642954065044,0.591,2440.8,2440.5,1.34164469]
[1642954065244,0.591,2440.8,2440.0,0.0009997]
[1642954065447,0.891,2440.8,2440.0,0.0009997]
[1642954065644,1.191,2440.8,2440.0,0.0009997]
[1642954066246,0.591,2440.8,2440.2,1.32919203]
[1642954067849,0.591,2440.8,2440.0,0.0009997]
[1642954068590,0.591,2440.8,2440.0,1.0009997]
[1642954068789,0.591,2440.8,2440.0,0.0009997]
[1642954069389,0.591,2440.8,2440.5,1.46127887]
[1642954069591,0.591,2440.8,2440.0,0.0009997]
[1642954069991,1.39632,2440.8,2440.0,0.0009997]
[1642954070193,0.00012694,2440.0,2439.9,4.1]
[1642954070596,0.00012694,2440.0,2439.6,1.1563]
[1642954074142,0.00012694,2440.0,2439.6,5.2563]
[1642954074345,0.00012694,2440.0,2439.6,5.5563]
[1642954074544,0.00012694,2440.0,2439.7,1.0]
[1642954075042,0.00012694,2440.0,2439.7,1.3]
[1642954077496,0.55337152,2441.0,2439.8,7.85]
[1642954077696,0.55337152,2441.0,2439.9,0.0378929]
[1642954077892,0.55337152,2441.0,2440.5,1.29679993]
[1642954081453,0.04,2441.3,2440.6,0.07443985]
[1642954081851,0.04,2441.3,2440.5,1.29679993]
[1642954082657,0.04,2441.3,2440.2,4.81061496]
[1642954082860,0.04,2441.3,2440.2,4.7984]
[1642954082861,0.591,2441.2,2440.2,4.7984]
[1642954083088,24.05,2441.1,2440.2,4.7984]
[1642954083288,0.591,2441.1,2440.2,4.7984]
[1642954083489,0.591,2441.1,2440.2,3.6277]
[1642954083490,0.891,2441.1,2440.2,3.6277]
[1642954083689,0.591,2441.1,2440.5,1.38372795]
[1642954084890,0.591,2441.1,2440.0,9.0208]
[1642954085092,0.891,2441.1,2440.0,9.0208]
[1642954085888,0.891,2441.1,2440.2,1.16768747]
[1642954086289,2.69840497,2441.1,2440.0,9.0208]
[1642954086494,0.20532,2441.0,2440.0,5.039]
[1642954086692,0.20532,2441.0,2439.1,1.1967]
[1642954086693,1.62881413,2440.9,2439.1,1.1967]
[1642954086956,24.25532,2440.8,2439.2,8.29429997]
[1642954087157,1.591,2440.7,2439.2,8.29429997]
[1642954087359,1.591,2440.7,2439.8,1.25239479]
[1642954087360,0.3,2440.6,2439.8,1.25239479]
[1642954087557,0.591,2440.5,2439.8,1.25239479]
[1642954087956,1.50532,2440.8,2439.8,1.25239479]
[1642954087957,1.09632,2440.8,2439.8,1.25239479]
[1642954088155,0.1739,2441.2,2439.9,3.61294726]
[1642954088156,0.591,2441.1,2439.9,3.61294726]
[1642954088359,0.1739,2441.2,2439.8,1.25239479]
[1642954088557,0.1739,2441.2,2440.7,1.26479883]
[1642954088856,0.1739,2441.2,2440.0,6.9147]
[1642954089054,0.20532,2441.1,2440.0,6.9147]
[1642954089858,0.50532,2441.1,2440.5,1.34973074]
[1642954090061,0.45532,2441.1,2440.5,1.34973074]
[1642954090689,0.45532,2441.1,2440.1,1.2296]
[1642954090690,1.04632,2441.1,2440.1,1.2296]
[1642954091689,1.34632,2441.1,2440.1,2.5576491]
[1642954092893,1.34632,2441.1,2440.5,1.20348289]
[1642954093293,1.34632,2441.1,2440.1,1.2296]
[1642954094345,1.34632,2441.1,2440.4,1.36559216]
[1642954094941,0.591,2441.1,2440.4,1.36559216]
[1642954096140,0.591,2441.1,2440.8,1.17387887]
[1642954096445,0.1739,2441.2,2440.8,1.17387887]
[1642954097145,0.1739,2441.2,2440.9,0.03364273]
[1642954097646,0.1739,2441.2,2440.9,0.9208]
[1642954097848,0.1739,2441.2,2441.0,0.03175758]
[1642954098292,0.1739,2441.2,2440.8,1.77387887]
[1642954098492,0.1739,2441.2,2440.9,1.0]
[1642954098692,0.1739,2441.2,2440.8,1.77387887]
[1642954099295,0.1739,2441.2,2440.9,0.03394595]
[1642954099494,0.1739,2441.2,2440.8,1.77387887]
[1642954100502,0.04,2441.3,2440.9,0.03126023]
[1642954100699,0.04,2441.3,2441.1,0.01217981]
[1642954101097,0.04,2441.6,2441.1,0.01217981]
[1642954101297,29.2197958,2442.5,2441.1,0.01217981]
[1642954101298,0.02,2442.0,2441.2,1.54962043]